Cogmind - Beta 11 @@@ ROGUE MODE // 2022.04.20 @ 06:28:11 Player: Benkyo Result: Core destroyed Performance ------------- Evolutions (7) 3500 Regions Visited (30) 6000 Robots Destroyed (379) 1895 Value Destroyed (17778) 17778 Prototype IDs (97) 1940 Alien Tech Used (6) 1200 Bonus (15836) 15836 TOTAL SCORE: 48149 Bonus ------- Triggered Max Security 1000 High Alert Combat Kills 7177 Follower Combat Kills 1673 Network Hubs Disabled 400 Aligned with FarCom 300 Met Data Miner 300 Destroyed Z-Imprinter 1000 Triggered Deep Caves Wall 500 Exposed GOLEM Chamber 500 Met Zhirov 300 Built Enhanced Grunts 300 A7 Reached Mainframe 300 Met R17 at Cetus 500 Read Decrypted Archives 300 Used Core Reset Matrix 3000 Met R17 at Research 2000 Friendly Fire -3714 Cogmind --------- Core Integrity 0/1300 Matter 285/300 Energy 460/1100 System Corruption 38% Temperature Critical (573) Movement Flying (365) Ox4 Location -3/Quarantine Parts ------- > --- POWER (2) -------- Assembled Flux Generator > --- PROPULSION (2) --- Impulse Thruster Array > --- UTILITY (14) ----- Assembled Nanovents Assembled Biocell Array Assembled Alloy Armor GOLEM Unit > --- WEAPON (3) ------- Assembled Focal Cannon Core Cannon > --- INVENTORY (5) ---- Improved Antigrav System Peak State ------------ > --- POWER ------------ Assembled Flux Generator > --- PROPULSION ------- Assembled Alloy Leg Assembled Alloy Leg > --- UTILITY ---------- Assembled Nanovents Assembled Nanovents Assembled Nanovents Cargo Storage Unit Assembled Biocell Array Assembled Biocell Array Assembled Suspension Frame Advanced Visual Processing Unit Assembled Combat Suite Assembled Alloy Armor Assembled Alloy Armor GOLEM Unit > --- WEAPON ----------- Advanced Plasma Rifle Assembled Focal Cannon Assembled Focal Cannon > --- INVENTORY -------- Zionite Biocell Zionite Biocell Zionite Biocell Advanced Transmission Jammer Advanced Component Analysis Suite Hacking Drone Bay GOLEM Unit GOLEM Unit GOLEM Unit GOLEM Unit GOLEM Unit GOLEM Unit GOLEM Unit GOLEM Unit GOLEM Unit GOLEM Unit GOLEM Unit Transdimensional Reconstructor CR-A16's Pointy Stick [Rating: 185] Favorites ----------- Power Assembled Flux Generator Engine Improved Deuterium Engine Power Core Fission Core Reactor Assembled Flux Generator Propulsion Armored Huge Wheel Treads Armored Treads Leg Assembled Alloy Leg Wheel Armored Huge Wheel Flight Unit Impulse Thruster Array Utility Huge Storage Unit Device GOLEM Unit Storage Huge Storage Unit Processor Improved Signal Interpreter Hackware Hacking Suite Protection Hardened Heavy Armor Plating Weapon Assembled Focal Cannon Energy Gun Zionite Phaser-S Energy Cannon Assembled Focal Cannon Ballistic Gun Improved Assault Rifle Ballistic Cannon Gauss Cannon Launcher Heavy Missile Launcher Special Weapon Molecular Deconstructor Impact Weapon Heavy Flail Slashing Weapon Mining Claw Build | -11 -10 -10 -9 -9 -9 -8 -8 -7 -7 -7 -7 -6 -6 -6 -6 -6 -6 -5 -5 -5 -5 -5 -4 -4 -4 -4 -4 -4 -3 -3 ------- Run | Scr Mat Min Mat Min Exi Min Mat Fac Low Low Dat Pro Fac Low Low Zio Dee Pro Fac Upp Upp Zhi Pro Fac Ext Cet Arc Hub Res Qua Slots Evolved 14 | . . . 2 . . . 2 2 . . . . 2 . . . . . 2 . . . . 2 . . . . 2 . Power 1 | . . . . . . . . . . . . . 1 . . . . . . . . . . . . . . . . . Propulsion . | . . . . . . . . . . . . . . . . . . . . . . . . . . . . . . . Utility 12 | . . . 2 . . . 1 2 . . . . 1 . . . . . 2 . . . . 2 . . . . 2 . Weapon 1 | . . . . . . . 1 . . . . . . . . . . . . . . . . . . . . . . . Parts Attached 339 | 6 14 2 32 9 4 4 39 19 6 24 . 10 15 4 6 5 55 12 8 2 . 3 3 8 15 6 5 9 5 9 Power 19 | 1 2 1 3 . . . 2 2 . 1 . . 3 . 2 . 2 . . . . . . . . . . . . . Engine 15 | 1 2 1 3 . . . 2 2 . 1 . . 2 . 1 . . . . . . . . . . . . . . . Core 2 | . . . . . . . . . . . . . 1 . 1 . . . . . . . . . . . . . . . Reactor 2 | . . . . . . . . . . . . . . . . . 2 . . . . . . . . . . . . . Propulsion 31 | 2 2 . 4 1 . . 9 4 . 5 . . 1 . . . 2 . . . . . . . . . . . . 1 Treads 5 | . . . . . . . 2 1 . 2 . . . . . . . . . . . . . . . . . . . . Leg 2 | . . . . . . . . . . 2 . . . . . . . . . . . . . . . . . . . . Wheel 23 | 2 2 . 4 1 . . 7 3 . 1 . . 1 . . . 2 . . . . . . . . . . . . . Hover . | . . . . . . . . . . . . . . . . . . . . . . . . . . . . . . . Flight 1 | . . . . . . . . . . . . . . . . . . . . . . . . . . . . . . 1 Utility 191 | 1 2 . 13 4 . . 12 10 4 13 . 8 10 4 4 4 31 11 7 1 . 3 3 7 14 5 5 8 5 2 Device 105 | . 1 . 5 1 . . 2 5 4 9 . 6 4 3 2 2 10 11 5 . . 2 2 6 12 1 3 5 3 1 Storage 14 | 1 1 . 2 . . . 1 . . . . . . . . . 7 . . . . . 1 . . 1 . . . . Processor 10 | . . . 2 . . . 1 1 . 1 . 1 1 . . . . . 1 . . . . . 1 . . 1 . . Hackware 3 | . . . . . . . 1 . . . . . 1 . . . . . . . . 1 . . . . . . . . Protection 59 | . . . 4 3 . . 7 4 . 3 . 1 4 1 2 2 14 . 1 1 . . . 1 1 3 2 2 2 1 Artifact . | . . . . . . . . . . . . . . . . . . . . . . . . . . . . . . . Weapon 98 | 2 8 1 12 4 4 4 16 3 2 5 . 2 1 . . 1 20 1 1 1 . . . 1 1 1 . 1 . 6 Energy Gun 24 | 2 1 1 1 . . . . . . . . . . . . . 16 1 . . . . . . . 1 . 1 . . Energy Cannon 6 | . . . . . . . . 1 1 . . . . . . . 2 . 1 . . . . . . . . . . 1 Ballistic Gun 36 | . 4 . 7 2 4 1 11 2 . 2 . . 1 . . . . . . . . . . 1 1 . . . . . Ballistic Cannon 9 | . . . . . . 1 3 . . 3 . 1 . . . 1 . . . . . . . . . . . . . . Launcher 9 | . . . . 2 . 2 . . . . . . . . . . 1 . . 1 . . . . . . . . . 3 Special Weapon 2 | . . . . . . . . . . . . 1 . . . . 1 . . . . . . . . . . . . . Impact Weapon 4 | . . . . . . . 2 . 1 . . . . . . . . . . . . . . . . . . . . 1 Slashing Weapon 8 | . 3 . 4 . . . . . . . . . . . . . . . . . . . . . . . . . . 1 Piercing Weapon . | . . . . . . . . . . . . . . . . . . . . . . . . . . . . . . . Special Melee Weapon . | . . . . . . . . . . . . . . . . . . . . . . . . . . . . . . . Unidentified Prototypes 14 | . . . . . . . . . . . . 1 . . . . 1 . . 1 . 1 . . . 4 1 2 1 2 Corrupted Parts 3 | . . . . . . 2 . . . . . . . . . . . . . . . . . . . . . . . 1 System Corruption 17 | . . . . . . 7 . . . . . . . . . . . . . . . . . . . . . . . 10 Parts Lost 53 | . 1 . 2 2 . . 3 1 . 6 . 2 . . . . 3 1 . . 2 . 1 . . . 2 3 1 23 Power 3 | . . . 1 . . . . . . . . . . . . . 1 . . . . . . . . . . . . 1 Propulsion 10 | . 1 . 1 1 . . 1 1 . 3 . . . . . . . . . . . . . . . . . . . 2 Utility 33 | . . . . 1 . . 2 . . 2 . 2 . . . . 2 . . . 2 . 1 . . . 1 3 . 17 Weapon 7 | . . . . . . . . . . 1 . . . . . . . 1 . . . . . . . . 1 . 1 3 Highest Loss Streak 18 | . 1 . 1 2 . . 3 1 . 4 . 1 . . . . 1 1 . . 1 . 1 . . . 2 1 1 18 To Critical Strikes . | . . . . . . . . . . . . . . . . . . . . . . . . . . . . . . . Average Slot Usage (%) 82 | . 94 100 99 99 77 100 99 97 92 87 84 80 79 79 80 76 69 72 75 75 76 62 79 81 84 83 83 83 79 68 Engine 5 | . 14 14 10 11 11 11 9 7 7 7 7 7 12 13 6 6 3 . . . . . . . . . . . . . Reactor 2 | . . . . . . . . . . . . . . . . . 4 6 5 5 5 5 5 5 5 5 5 5 3 3 Leg 1 | . . . . . . . . . . 1 . . . . . . . . . . . . 6 10 10 10 10 10 9 6 Wheel 8 | . 27 28 21 21 22 22 17 13 15 3 7 7 5 6 6 6 5 6 5 5 5 5 1 . . . . . . . Device 12 | . 8 14 5 . . . 3 3 7 6 7 9 13 12 13 11 11 19 25 17 19 18 16 24 26 22 21 20 19 20 Storage 9 | . 14 14 11 11 11 11 9 7 7 7 7 7 6 6 6 6 9 13 11 11 11 11 11 10 10 10 10 10 12 11 Processor 11 | . . . 22 22 22 22 14 23 23 23 23 16 13 13 13 11 2 . 3 5 5 5 5 5 5 5 5 8 4 3 Protection 9 | . . . 5 10 11 11 10 9 7 7 7 7 11 13 12 14 12 5 5 10 8 5 5 8 9 13 14 11 12 8 Energy Gun 2 | . 16 14 11 . . . . . . . . . . . . . 7 4 1 . . . . . . . . 4 3 . Energy Cannon 5 | . . . . . . . . . 6 2 . . . . . . 2 15 15 16 17 5 17 11 10 14 14 10 9 5 Ballistic Gun 6 | . 10 14 10 20 . 20 24 22 15 8 7 7 6 6 6 4 . . . . . . . 3 5 . . . . . Ballistic Cannon 1 | . . . . . . . . . . 10 15 14 . . . 1 2 . . . . . . . . . . . . . Naked Turns . | . . . . . . . . . . . . . . . . . . . . . . . . . . . . . . . Heaviest Build 258 | 13 30 31 100 99 99 107 155 125 125 128 128 148 141 159 141 210 224 234 240 240 241 238 238 239 231 249 250 249 258 258 Greatest Support 80 | 32 32 20 22 22 22 22 43 28 26 48 28 28 28 28 28 28 60 28 48 48 48 28 60 80 80 80 80 80 80 80 Greatest Overweight (x) 61 | . 1 1 4 8 4 4 6 9 4 6 4 5 5 5 5 7 7 8 8 4 8 8 8 2 2 3 4 3 3 61 Average Overweight (x) 4 | . . 1 2 4 4 4 4 4 4 3 4 4 4 4 4 4 5 7 4 4 6 6 6 2 2 2 3 2 2 2 Largest Inventory Capacity 30 | 8 15 15 25 25 25 25 25 25 25 25 25 25 25 25 25 25 30 30 30 30 30 30 30 30 30 30 30 30 30 30 Average Capacity 26 | 7 14 15 19 25 25 25 25 25 25 25 25 25 25 25 25 25 26 30 30 30 30 30 30 30 30 30 30 30 30 24 Most Carried 30 | 8 15 15 25 25 25 25 25 25 25 25 25 25 25 25 25 25 30 30 30 30 30 30 30 30 30 30 30 30 30 30 Average Carried 25 | 4 12 14 18 24 24 25 24 24 24 24 25 24 24 24 24 24 23 29 29 29 29 29 29 30 30 30 29 29 29 22 Final Capacity 30 | 8 15 15 25 25 25 25 25 25 25 25 25 25 25 25 25 25 30 30 30 30 30 30 30 30 30 30 30 30 30 5 Final Carried 30 | 8 12 15 25 25 25 25 25 25 25 25 25 25 25 25 25 25 30 30 30 30 30 30 30 30 30 30 30 30 30 1 Class Distribution -------------------- 31% | Hauler-Golem 11% | Skirmisher 10% | Mutant 10% | Derelict-Skirmisher 9% | Scavenger-Skirmisher 6% | Tank 5% | Commander-Skirmisher 3% | Scavenger-Mutant 3% | Hauler-Skirmisher Dominant Class ---------------- Mutant | -10/Materials Mutant | -10/Mines Scavenger-Mutant | -9/Materials Mutant | -9/Mines Mutant | -9/Exiles Mutant | -8/Mines Scavenger-Skirmisher | -8/Materials Skirmisher | -7/Factory Scavenger-Skirmisher | -7/Lower Caves Derelict-Skirmisher | -7/Lower Caves Derelict-Skirmisher | -7/Data Miner Derelict-Skirmisher | -6/Proximity Caves Derelict-Skirmisher | -6/Factory Skirmisher | -6/Lower Caves Commander-Skirmisher | -6/Lower Caves Commander-Skirmisher | -6/Zion Tank | -6/Deep Caves Hauler-Golem | -5/Proximity Caves Hauler-Golem | -5/Factory Hauler-Golem | -5/Upper Caves Hauler-Golem | -5/Upper Caves Hauler-Golem | -5/Zhirov Hauler-Golem | -4/Proximity Caves Hauler-Golem | -4/Factory Hauler-Golem | -4/Extension Hauler-Golem | -4/Cetus Hauler-Golem | -4/Archives Hauler-Golem | -4/Hub_04(d) Hauler-Golem | -3/Research Hauler-Golem | -3/Quarantine Resources | -11 -10 -10 -9 -9 -9 -8 -8 -7 -7 -7 -7 -6 -6 -6 -6 -6 -6 -5 -5 -5 -5 -5 -4 -4 -4 -4 -4 -4 -3 -3 ----------- Run | Scr Mat Min Mat Min Exi Min Mat Fac Low Low Dat Pro Fac Low Low Zio Dee Pro Fac Upp Upp Zhi Pro Fac Ext Cet Arc Hub Res Qua Matter Collected 7790 | 260 217 32 562 318 15 111 1240 686 130 730 . 212 330 274 135 45 663 120 70 165 96 . 220 45 223 107 . 135 45 604 Remotely 207 | . . . . . . . 207 . . . . . . . . . . . . . . . . . . . . . . . Salvage Created 21970 | 168 524 21 962 131 . 141 1662 855 21 851 . 37 236 195 80 . 2388 1069 386 296 442 . 496 311 465 183 293 1242 380 8135 Parts 739 | 7 30 2 69 4 . 16 93 49 2 27 . 1 18 6 5 . 44 26 11 7 25 . 33 7 21 12 17 63 19 125 Haulers Intercepted 10 | . 2 . 5 . . . 1 . . . . . . . . . . . . . . . . 1 . . . 1 . . Recyclers Shooed 3 | . . . 1 . . . . . . . . . . . . . . . 1 . . . . 1 . . . . . . Parts Field Recycled . | . . . . . . . . . . . . . . . . . . . . . . . . . . . . . . . Retrieved Matter . | . . . . . . . . . . . . . . . . . . . . . . . . . . . . . . . Parts Self-Destructed 139 | . . . . . . . . . 5 28 . 4 . 6 . 3 . 26 . 7 25 . 35 . . . . . . . Prevented 2 | . . . . . . . . . . . . . . . . . . . . . . . 2 . . . . . . . Kills | -11 -10 -10 -9 -9 -9 -8 -8 -7 -7 -7 -7 -6 -6 -6 -6 -6 -6 -5 -5 -5 -5 -5 -4 -4 -4 -4 -4 -4 -3 -3 ------- Run | Scr Mat Min Mat Min Exi Min Mat Fac Low Low Dat Pro Fac Low Low Zio Dee Pro Fac Upp Upp Zhi Pro Fac Ext Cet Arc Hub Res Qua Combat Hostiles Destroyed 376 | . 11 . 13 16 . 4 34 18 . 18 . 1 8 3 1 . 71 16 3 5 10 . 12 1 6 3 3 12 7 100 Guns 108 | . 11 . 13 8 . 2 19 18 . 9 . . 1 1 1 . 20 2 . . . . . . . . . 2 1 . Cannons 137 | . . . . . . . 15 . . 9 . 1 . . . . 14 13 3 4 10 . 12 1 6 3 3 10 6 27 AOE 96 | . . . . 8 . 2 . . . . . . . . . . 35 . . 1 . . . . . . . . . 50 Classes Destroyed 29 | 2 4 . 3 3 . 1 3 1 1 2 . . . . . . 3 . . . . . . . . . . . 1 5 Worker 18 | . . . 2 . . . 6 4 . . . . . . . . . . . . . . . . . . . 5 1 . Builder 3 | . . . . 1 . . . 1 . . . . . . . . . . . . . . . . . . . . 1 . Tunneler 9 | 4 . 1 . . . 2 1 . . . . . . . . . . . . . . . . . . . . 1 . . Hauler 10 | . 2 . 5 . . . 1 . . . . . . . . . . . . . . . . 1 . . . 1 . . Recycler 5 | 1 . . 1 . . . . . . . . . . . . . . . 1 . . . . 1 . . . 1 . . Carrier 2 | . . . . . . . . . . . . . . . . . . . . . . . . . . . . . . 2 Minesweeper 6 | . . . . . . . . . 1 . . 1 . . . . . 1 . 1 1 . 1 . . . . . . . Mechanic 5 | . . . . . . . 1 . . . . . . . . . . . . . . . . . . . . . . 4 Operator 4 | . . . 2 . . . 2 . . . . . . . . . . . . . . . . . . . . . . . Watcher 20 | . 2 . 4 . . . 5 1 . . . . 2 . . . . . 2 . . . . . 1 . . 3 . . Swarmer 47 | . 4 . . . . . 3 8 . 7 . . 4 3 . . . . . . 5 . 8 . . 1 . . 4 . Saboteur 6 | . . . . . . . . . . . . . . . . . . . . . . . . . . . . . . 6 Grunt 131 | . 7 . 11 . . 3 23 3 . 4 . 1 . . . . . 13 . 4 2 . 3 . 2 1 3 4 1 46 Brawler 10 | . . . . . . . . . . 3 . . . . . . . 2 . . . . 1 . . . . . . 4 Duelist 6 | . . . . . . . 1 . . 3 . . . . . . . . . . . . . . . . . . . 2 Protector 5 | . . . . . . . . . . . . . . . . . . . . . . . . . . . . . . 5 Sentry 22 | . . . 2 . . . 5 3 . 1 . . 1 . . . . 1 1 1 . . . . 3 . . 3 1 . Demolisher 1 | . . . . 1 . . . . . . . . . . . . . . . . . . . . . . . . . . Hunter 16 | . . . . . . 1 1 . . . . . . . . . . . . . . . . . . 1 . . . 13 Programmer 37 | . . . . . . . . 4 . . . . 3 . . . . . 2 . 3 . . 1 1 . . 5 . 18 Heavy 1 | . . . . . . . 1 . . . . . . . . . . . . . . . . . . . . . . . Investigator 2 | . . . . . . . . . . . . . . . . . . . . . . . . . . . . . . 2 Striker 3 | . . . . . . . . . . . . . . . . . . . . . . . . . . . . . 1 2 Executioner 4 | . . . . . . . . . . . . . . . . . . . . . . . . . . . . . . 4 Z-Technician 4 | . . . . . . . . . . . . . . . . . 4 . . . . . . . . . . . . . Z-Light 9 | . . . . . . . . . . . . . . . . . 9 . . . . . . . . . . . . . Packrat 3 | . . . . . . . . . . . . . . 3 . . . . . . . . . . . . . . . . Assembler 2 | . . . . . . . . . . . . . . . . . 2 . . . . . . . . . . . . . Assembled 56 | . . . . 15 . . . . . . . . . . . . 41 . . . . . . . . . . . . . Golem 20 | . . . . . . . . . . . . . . . . . 20 . . . . . . . . . . . . . Thug 1 | . . . . . . . . . . 1 . . . . . . . . . . . . . . . . . . . . Savage 1 | . . . . . . . . . . 1 . . . . . . . . . . . . . . . . . . . . Mutant 2 | . . . . . . . . . . 1 . . . . 1 . . . . . . . . . . . . . . . Best Kill Streak 40 | 2 4 1 6 8 . 4 16 4 1 9 . 2 4 3 1 . 40 5 2 3 5 . 4 1 2 2 3 4 3 27 Combat Bots Only 38 | . 3 . 2 8 . 4 14 4 . 9 . 1 4 3 1 . 38 5 2 3 5 . 4 1 2 2 3 3 3 25 Max Kills in Single Turn 14 | 1 1 1 2 5 . 1 1 2 1 1 . 1 1 1 1 . 14 1 1 1 1 . 2 1 1 1 1 4 2 6 Gunslinging 1 | . . . . . . . . 1 . . . . . . . . 1 . . . . . . . . . . . . . Exploded 14 | . . . . 5 . 1 . . . . . . . . . . 14 . . 1 . . . . . . . . . 4 Melee . | . . . . . . . . . . . . . . . . . . . . . . . . . . . . . . . Uniques/NPCs Destroyed 2 | . . . . . . . . . . . . . . . . . 1 . . . . . . . . . 1 . . . Z-Imprinter (-6/Deep Caves) A7 (-4/Archives) Combat | -11 -10 -10 -9 -9 -9 -8 -8 -7 -7 -7 -7 -6 -6 -6 -6 -6 -6 -5 -5 -5 -5 -5 -4 -4 -4 -4 -4 -4 -3 -3 -------- Run | Scr Mat Min Mat Min Exi Min Mat Fac Low Low Dat Pro Fac Low Low Zio Dee Pro Fac Upp Upp Zhi Pro Fac Ext Cet Arc Hub Res Qua Damage Taken 19986 | . 404 11 553 292 . 151 2027 1099 50 1865 . 212 720 254 53 . 1628 995 136 161 486 . 659 . 184 205 1168 1118 481 5074 Core 2894 | . 111 . 123 21 . 63 241 63 . 166 . . 51 30 . . 146 90 . 19 41 . 90 . . 11 46 162 . 1420 Absorbed by Shields 47 | . . . . . . . . . . . . . . . . . . . . . . . . . . 47 . . . . Redirected to Shielding 194 | . . . . . . . . . . 8 . . 83 57 . . 46 . . . . . . . . . . . . . Regen/Repaired (Parts) 412 | . . . 30 . . . 268 . . . . . 114 . . . . . . . . . . . . . . . . . Core Remaining (%) 69 | 100 . 55 . . . 48 56 . . . . 67 . . . . . 62 . . . . 85 . . . . 80 . . Volleys Fired 883 | 17 47 4 71 22 . 13 75 49 2 55 . 11 29 16 12 . 129 41 17 14 22 . 22 7 27 30 7 26 18 100 Largest 3 | 2 2 2 2 2 . 2 3 3 3 3 . 3 2 2 2 . 3 3 3 3 3 . 3 3 3 3 3 3 3 3 Hottest 325 | 90 90 83 98 60 . 53 94 79 131 151 . 124 28 33 33 . 184 131 140 89 75 . 75 85 85 85 75 138 138 325 Shots Fired 2111 | 34 93 8 140 45 . 26 267 146 6 140 . 31 50 21 15 . 335 116 46 35 68 . 64 18 58 46 21 76 52 154 Gun 1131 | 34 93 8 140 35 . 17 223 146 4 80 . 10 21 5 7 . 233 23 . . . . . 1 13 3 . 23 12 . Cannon 825 | . . . . . . . 44 . 2 60 . 21 . . . . 91 93 46 31 68 . 64 17 45 43 21 53 40 86 Launcher 98 | . . . . 10 . 9 . . . . . . . . . . 7 . . 4 . . . . . . . . . 68 Special 57 | . . . . . . . . . . . . . 29 16 8 . 4 . . . . . . . . . . . . . Kinetic 848 | . 42 4 71 35 . 17 267 146 4 111 . 31 21 5 7 . 70 . . . . . . 1 13 3 . . . . Thermal 988 | 34 51 4 69 . . . . . 2 29 . . . . . . 140 110 46 31 68 . 64 17 45 43 21 76 52 86 Explosive 29 | . . . . 10 . 8 . . . . . . . . . . 7 . . 4 . . . . . . . . . . Electromagnetic 86 | . . . . . . 1 . . . . . . . . . . 17 . . . . . . . . . . . . 68 Phasic 103 | . . . . . . . . . . . . . . . . . 97 6 . . . . . . . . . . . . Robot Hit Streak 70 | 11 10 2 14 5 . 5 26 27 7 15 . 5 6 6 4 . 67 70 5 11 8 . 6 9 12 7 7 11 9 24 Robot Miss Streak 8 | 3 5 1 3 2 . 2 6 3 2 4 . 7 8 3 2 . 4 2 3 2 3 . 8 . 2 2 1 3 2 3 Penetration Max 1 | . . . . . . . 1 1 . . . . . . . . . . . . . . . . . . . . . . Secondary Targets 6 | . 1 . 2 . . . 1 1 . . . . . . . . 1 . . . . . . . . . . . . . Max Gunslinging Chain 1 | . 1 . 1 . . . 1 1 . . . . . . . . 1 . . . . . . . . . . . . . Autonomous 112 | . . . . . . . 42 . . . . . . . . . 70 . . . . . . . . . . . . . Shots Hit Robots 1302 | 24 60 4 99 23 . 11 175 99 2 89 . 23 32 9 6 . 234 83 23 18 35 . 28 8 20 34 12 43 29 79 Core Hits 1013 | 6 28 1 39 29 . 11 68 48 2 54 . 11 18 1 3 . 214 29 8 10 13 . 15 4 12 14 7 39 21 308 Critical Kills 6 | . . . 1 . . . 1 1 . . . . . 1 1 . . . . . . . . . . . . . . 1 Critical Parts Destroyed 14 | . . . . 1 . . 3 2 . 2 . . . 2 1 . . . . . . . . . . . . . . 3 Critical Strikes 34 | 1 2 . 6 1 . . 5 3 . 3 . . . 3 2 . 3 . . . . . . . . . . 1 . 4 Burn 9 | 1 2 . 5 . . . . . . . . . . . . . . . . . . . . . . . . 1 . . Destroy 19 | . . . 1 1 . . 3 3 . 2 . . . 3 2 . . . . . . . . . . . . . . 4 Blast 3 | . . . . . . . 1 . . 1 . . . . . . 1 . . . . . . . . . . . . . Smash 1 | . . . . . . . 1 . . . . . . . . . . . . . . . . . . . . . . . Intensify 2 | . . . . . . . . . . . . . . . . . 2 . . . . . . . . . . . . . Melee Attacks 34 | . 14 . 11 . . . 5 . 3 . . . . . . . . . . . . . . . . . . . . 1 Impact 9 | . . . . . . . 5 . 3 . . . . . . . . . . . . . . . . . . . . 1 Slashing 25 | . 14 . 11 . . . . . . . . . . . . . . . . . . . . . . . . . . . Piercing . | . . . . . . . . . . . . . . . . . . . . . . . . . . . . . . . Sneak Attacks 3 | . . . . . . . 3 . . . . . . . . . . . . . . . . . . . . . . . Combat Hostiles . | . . . . . . . . . . . . . . . . . . . . . . . . . . . . . . . Follow-up Attacks . | . . . . . . . . . . . . . . . . . . . . . . . . . . . . . . . Damage Inflicted 54800 | 297 703 55 1733 847 . 600 5625 1917 61 1972 . 538 347 25 34 . 11003 3436 1140 1028 1751 . 1322 364 739 1475 662 2710 1423 12993 Guns 15386 | 297 703 55 1733 313 . 176 2419 1917 34 1043 . 157 347 25 34 . 4871 463 . . . . . . 84 71 . 400 244 . Cannons 25637 | . . . . . . . 2935 . 27 929 . 381 . . . . 3382 2973 1140 779 1751 . 1322 364 655 1404 662 1825 1179 3929 Explosions 13482 | . . . . 534 . 424 . . . . . . . . . . 2750 . . 249 . . . . . . . 461 . 9064 Melee 271 | . . . . . . . 271 . . . . . . . . . . . . . . . . . . . . . . . Ramming 24 | . . . . . . . . . . . . . . . . . . . . . . . . . . . . 24 . . Kinetic 14240 | . 257 42 617 313 . 176 5354 1917 34 1484 . 538 347 25 34 . 2947 . . . . . . . 84 71 . . . . Thermal 25413 | 297 446 13 1116 . . 90 . . 27 488 . . . . . . 3010 3271 1140 779 1751 . 1322 364 655 1404 662 2225 1423 4930 Explosive 3867 | . . . . 534 . 334 . . . . . . . . . . 2750 . . 249 . . . . . . . . . . Electromagnetic 8774 | . . . . . . . . . . . . . . . . . 250 . . . . . . . . . . 461 . 8063 Impact 271 | . . . . . . . 271 . . . . . . . . . . . . . . . . . . . . . . . Slashing . | . . . . . . . . . . . . . . . . . . . . . . . . . . . . . . . Piercing . | . . . . . . . . . . . . . . . . . . . . . . . . . . . . . . . Phasic 2211 | . . . . . . . . . . . . . . . . . 2046 165 . . . . . . . . . . . . Highest Corruption 38 | . . . 2 2 2 10 . 2 . . . . 1 . . . . . 2 2 5 5 5 . . . . 13 . 38 Average Corruption 4 | . . . 2 2 2 2 . 1 . . . . 1 . . . . . 1 2 4 5 5 . . . . 1 . 16 Corruption Purged 3 | . . . . . . . . 2 . . . . 1 . . . . . . . . . . . . . . . . . Corruption Blocked . | . . . . . . . . . . . . . . . . . . . . . . . . . . . . . . . Effects 209 | . . . 12 13 13 5 . . . . . . . . . . . . 4 21 40 10 58 . . . . 5 . 28 Message Errors 53 | . . . 3 3 4 1 . . . . . . . . . . . . 2 4 9 2 17 . . . . . . 8 Matter Fused 56 | . . . 2 5 1 1 . . . . . . . . . . . . 1 8 12 1 20 . . . . 2 . 3 Heat Flow Errors 27 | . . . 4 . 1 1 . . . . . . . . . . . . . 2 5 1 6 . . . . 2 . 5 Energy Discharges 19 | . . . . 1 3 . . . . . . . . . . . . . . 1 5 1 6 . . . . 1 . 1 Parts Rejected 1 | . . . . . . . . . . . . . . . . . . . . . . . . . . . . . . 1 Data Loss (minor) 28 | . . . 1 3 3 1 . . . . . . . . . . . . 1 3 3 3 6 . . . . . . 4 Data Loss (major) 8 | . . . 1 . 1 . . . . . . . . . . . . . . . 1 2 2 . . . . . . 1 Misfires 11 | . . . 1 1 . 1 . . . . . . . . . . . . . 2 4 . 1 . . . . . . 1 Alerts 1 | . . . . . . . . . . . . . . . . . . . . 1 . . . . . . . . . . Weapon Failures 5 | . . . . . . . . . . . . . . . . . . . . . 1 . . . . . . . . 4 Overload Shots . | . . . . . . . . . . . . . . . . . . . . . . . . . . . . . . . Overflow Damage 3376 | . . . . 24 . . 548 . . 19 . 55 . . . . 688 108 245 26 131 . 113 21 . 34 18 42 6 1298 Projectiles 2634 | . . . . . . . 357 . . 19 . 55 . . . . 666 108 245 26 131 . 113 21 . 34 18 40 6 795 Explosions 551 | . . . . 24 . . . . . . . . . . . . 22 . . . . . . . . . . 2 . 503 Melee 191 | . . . . . . . 191 . . . . . . . . . . . . . . . . . . . . . . . Knockbacks 21 | . . . . . . . 8 . . 5 . 4 . . . . 4 . . . . . . . . . . . . . Impact 1 | . . . . . . . 1 . . . . . . . . . . . . . . . . . . . . . . . Kinetic 18 | . . . . . . . 5 . . 5 . 4 . . . . 4 . . . . . . . . . . . . . Secondary 2 | . . . . . . . 2 . . . . . . . . . . . . . . . . . . . . . . . Self-Inflicted Damage 129 | . . . . . . 16 . . . . . . . . . . . . . . . . . . . . . 90 . 23 Shots 5 | . . . . . . 1 . . . . . . . . . . . . . . . . . . . . . 1 . 3 Rammed . | . . . . . . . . . . . . . . . . . . . . . . . . . . . . . . . Targets Rammed 1 | . . . . . . . . . . . . . . . . . . . . . . . . . . . . 1 . . Kicked 1 | . . . . . . . . . . . . . . . . . . . . . . . . . . . . 1 . . Crushed . | . . . . . . . . . . . . . . . . . . . . . . . . . . . . . . . Highest Temperature 623 | 140 130 21 406 27 105 166 108 180 279 492 . 216 1 160 16 . 399 226 316 211 193 167 188 . 11 . . 203 6 623 Average Temperature 93 | 51 43 10 85 14 54 66 37 47 108 207 . 86 1 115 7 . 91 104 98 62 98 105 85 . 11 . . 98 6 185 Received Heat Transfer 3283 | . 135 6 276 . . 99 639 183 . 387 . 27 30 . . . 291 525 . 39 36 . 111 . 85 . . 57 60 297 Effects 21 | . . . 4 . . . . . . 5 . 3 . . . . 4 . . . . . . . . . . . . 5 Shutdowns 5 | . . . 1 . . . . . . 3 . . . . . . 1 . . . . . . . . . . . . . Energy Bleed 5 | . . . 1 . . . . . . 1 . . . . . . 2 . . . . . . . . . . . . 1 Interference 4 | . . . 1 . . . . . . . . 3 . . . . . . . . . . . . . . . . . . Matter Decay 2 | . . . 1 . . . . . . 1 . . . . . . . . . . . . . . . . . . . . Damage (minor) 1 | . . . . . . . . . . . . . . . . . 1 . . . . . . . . . . . . . Damage (major) 3 | . . . . . . . . . . . . . . . . . . . . . . . . . . . . . . 3 Damage (core) 1 | . . . . . . . . . . . . . . . . . . . . . . . . . . . . . . 1 Siege Activations . | . . . . . . . . . . . . . . . . . . . . . . . . . . . . . . . Robots Corrupted 19 | . . . . . . . . . . . . . . . . . 2 . . . . . . . . . . . . 17 Combat Hostiles 18 | . . . . . . . . . . . . . . . . . 2 . . . . . . . . . . . . 16 Parts Fried 38 | . . . . . . . 2 . . . . . . . . . . . . . . . . . . . . 1 . 35 Impact Corruptions 7 | . . . . . . . 7 . . . . . . . . . . . . . . . . . . . . . . . Robots Melted 8 | . . . . . . . . . . . . . . . . . . 1 . . . . . . . . . . . 7 Combat Hostiles 7 | . . . . . . . . . . . . . . . . . . 1 . . . . . . . . . . . 6 Parts Melted 210 | 1 2 . 2 . . . . . . . . . . . . . 1 2 . . . . . 1 . . . 7 2 192 Heat Transferred 21235 | 855 1419 37 2479 . . 100 . . 50 950 . . . . . . 3678 2181 623 425 925 . 725 200 375 670 362 1650 1018 2513 Parts Sabotaged . | . . . . . . . . . . . . . . . . . . . . . . . . . . . . . . . Parts Stolen . | . . . . . . . . . . . . . . . . . . . . . . . . . . . . . . . Parts Stripped . | . . . . . . . . . . . . . . . . . . . . . . . . . . . . . . . Power Chain Reactions 8 | . . . . . . . . . . . . . . . . . . . . . . . . . . . . . . 8 Missiles Intercepted . | . . . . . . . . . . . . . . . . . . . . . . . . . . . . . . . Alert | -11 -10 -10 -9 -9 -9 -8 -8 -7 -7 -7 -7 -6 -6 -6 -6 -6 -6 -5 -5 -5 -5 -5 -4 -4 -4 -4 -4 -4 -3 -3 ------- Run | Scr Mat Min Mat Min Exi Min Mat Fac Low Low Dat Pro Fac Low Low Zio Dee Pro Fac Upp Upp Zhi Pro Fac Ext Cet Arc Hub Res Qua Peak Influence 4376 | 25 215 38 350 157 . 183 447 472 . . . . 110 . . . . . 150 . . . . 55 157 746 543 625 367 4376 Initial 322 | . 16 33 . 66 . . 1 203 . . . . . . . . . . . . . . . 1 . 24 220 60 322 70 Average 332 | 9 86 31 146 51 . 114 270 231 . . . . 29 . . . . . 47 . . . . 12 52 386 334 112 167 3140 Maximum Alert Level 5 | . 1 . 1 . . . 2 2 . . . . . . . . . . . . . . . . . 3 2 2 1 5 Low Security (%) 63 | 100 84 100 54 100 . 100 31 36 . . . . 100 . . . . . 100 . . . . 100 100 14 25 98 66 . Level 1 23 | . 15 . 45 . . . 49 47 . . . . . . . . . . . . . . . . . 47 45 . 33 . Level 2 6 | . . . . . . . 19 16 . . . . . . . . . . . . . . . . . 20 28 1 . . Level 3 . | . . . . . . . . . . . . . . . . . . . . . . . . . . 17 . . . . Level 4 . | . . . . . . . . . . . . . . . . . . . . . . . . . . . . . . . Level 5 . | . . . . . . . . . . . . . . . . . . . . . . . . . . . . . . . High Security . | . . . . . . . . . . . . . . . . . . . . . . . . . . . . . . . Max Security 6 | . . . . . . . . . . . . . . . . . . . . . . . . . . . . . . 99 Squads Dispatched 97 | . 3 1 1 . . . 11 4 . 1 . . 5 . . . . . . . . . . 2 . . . 3 7 59 Investigation 2 | . . 1 . . . . . . . . . . . . . . . . . . . . . . . . . . 1 . Extermination 11 | . . . . . . . . 3 . . . . 4 . . . . . . . . . . 2 . . . 2 . . Reinforcement 17 | . 3 . 1 . . . 4 1 . . . . 1 . . . . . . . . . . . . . . 1 6 . Assault 58 | . . . . . . . . . . 1 . . . . . . . . . . . . . . . . . . . 57 Garrison 9 | . . . . . . . 7 . . . . . . . . . . . . . . . . . . . . . . 2 Intercept . | . . . . . . . . . . . . . . . . . . . . . . . . . . . . . . . Searches Triggered . | . . . . . . . . . . . . . . . . . . . . . . . . . . . . . . . Construction Impeded . | . . . . . . . . . . . . . . . . . . . . . . . . . . . . . . . Haulers Reinforced 1 | . . . . . . . . . . . . . . . . . . . . . . . . . . . . . 1 . Active Scanning Responses . | . . . . . . . . . . . . . . . . . . . . . . . . . . . . . . . Cargo Convoy Interrupts . | . . . . . . . . . . . . . . . . . . . . . . . . . . . . . . . Stealth | -11 -10 -10 -9 -9 -9 -8 -8 -7 -7 -7 -7 -6 -6 -6 -6 -6 -6 -5 -5 -5 -5 -5 -4 -4 -4 -4 -4 -4 -3 -3 --------- Run | Scr Mat Min Mat Min Exi Min Mat Fac Low Low Dat Pro Fac Low Low Zio Dee Pro Fac Upp Upp Zhi Pro Fac Ext Cet Arc Hub Res Qua Distress Signals 17 | . . . 3 . . . . . . . . . . . . . . . . . 1 . . . 1 2 . . 9 1 Communications Jammed 62 | . . . . . . . . . . . . . . . . . . . . . . . . . 1 55 . 5 1 . Distress Signals 62 | . . . . . . . . . . . . . . . . . . . . . . . . . 1 55 . 5 1 . Times Spotted 568 | . 19 2 29 16 . 4 46 26 . 19 . 5 10 3 1 . 56 18 5 6 12 . 10 1 12 17 12 26 19 194 Peak Tracking Total 37 | . 3 1 5 8 . 3 10 8 . 10 . 3 4 3 1 . 37 5 2 3 5 . 4 1 3 6 7 8 4 27 Tactical Retreats 28 | . . . 3 . . . 2 1 . 1 . 1 . . . . 1 1 . . 1 . . . . . . . 1 16 Traps | -11 -10 -10 -9 -9 -9 -8 -8 -7 -7 -7 -7 -6 -6 -6 -6 -6 -6 -5 -5 -5 -5 -5 -4 -4 -4 -4 -4 -4 -3 -3 ------- Run | Scr Mat Min Mat Min Exi Min Mat Fac Low Low Dat Pro Fac Low Low Zio Dee Pro Fac Upp Upp Zhi Pro Fac Ext Cet Arc Hub Res Qua Traps Triggered 7 | . . . 1 1 . . 1 . 1 . . . . . . . . . . . . . . . 2 . . . 1 . Indirectly . | . . . . . . . . . . . . . . . . . . . . . . . . . . . . . . . Trap Hack Attempts . | . . . . . . . . . . . . . . . . . . . . . . . . . . . . . . . Triggered . | . . . . . . . . . . . . . . . . . . . . . . . . . . . . . . . Disarmed . | . . . . . . . . . . . . . . . . . . . . . . . . . . . . . . . Reprogrammed . | . . . . . . . . . . . . . . . . . . . . . . . . . . . . . . . Reused . | . . . . . . . . . . . . . . . . . . . . . . . . . . . . . . . Traps Extracted . | . . . . . . . . . . . . . . . . . . . . . . . . . . . . . . . Installed . | . . . . . . . . . . . . . . . . . . . . . . . . . . . . . . . Triggered 8 | . . . . . . . . . 4 . . . . 3 . . . . . . . . 1 . . . . . . . Machines | -11 -10 -10 -9 -9 -9 -8 -8 -7 -7 -7 -7 -6 -6 -6 -6 -6 -6 -5 -5 -5 -5 -5 -4 -4 -4 -4 -4 -4 -3 -3 ---------- Run | Scr Mat Min Mat Min Exi Min Mat Fac Low Low Dat Pro Fac Low Low Zio Dee Pro Fac Upp Upp Zhi Pro Fac Ext Cet Arc Hub Res Qua Machines Disabled 31 | . . . . . . 3 3 . . . . 1 . . . . 2 . 1 1 . . . . . 1 1 11 . 7 Max in Single Turn 10 | . . . . . . 3 1 . . . . 1 . . . . 1 . 1 1 . . . . . 1 1 10 . 1 Garrison Access 1 | . . . . . . . . . . . . . . . . . . . . . . . . . . . . . . 1 Network Hub 2 | . . . . . . . . . . . . . . . . . . . . . . . . . . . . 2 . . Machines Sabotaged . | . . . . . . . . . . . . . . . . . . . . . . . . . . . . . . . Garrisons Compromised . | . . . . . . . . . . . . . . . . . . . . . . . . . . . . . . . Overloaded Fab Kills . | . . . . . . . . . . . . . . . . . . . . . . . . . . . . . . . Hacking | -11 -10 -10 -9 -9 -9 -8 -8 -7 -7 -7 -7 -6 -6 -6 -6 -6 -6 -5 -5 -5 -5 -5 -4 -4 -4 -4 -4 -4 -3 -3 --------- Run | Scr Mat Min Mat Min Exi Min Mat Fac Low Low Dat Pro Fac Low Low Zio Dee Pro Fac Upp Upp Zhi Pro Fac Ext Cet Arc Hub Res Qua Machines Accessed 81 | . 8 2 14 2 2 . 11 6 . 1 4 . 8 4 2 . . . 2 2 1 5 . 1 1 1 1 2 1 . Terminals 40 | . 6 1 10 1 . . 6 4 . . . . 5 1 . . . . 2 . . . . 1 . 1 . 2 . . Fabricators 2 | . . . . . . . . . . . . . 2 . . . . . . . . . . . . . . . . . Repair Stations 4 | . . . 1 . . . 2 . . . . . 1 . . . . . . . . . . . . . . . . . Recycling Units 9 | . 2 . 2 . . . 2 1 . . . . . . . . . . . . . . . . 1 . . . 1 . Scanalyzers 3 | . . . 1 . . . 1 1 . . . . . . . . . . . . . . . . . . . . . . Garrison Access . | . . . . . . . . . . . . . . . . . . . . . . . . . . . . . . . Total Hacks 277 | . 22 2 48 5 2 . 33 21 . 1 29 . 26 14 9 . . . 8 2 1 18 . 1 2 2 25 3 3 . Successful 202 | . 14 1 33 2 2 . 22 13 . 1 29 . 11 14 9 . . . 2 2 1 18 . 1 . . 25 2 . . Failed 75 | . 8 1 15 3 . . 11 8 . . . . 15 . . . . . 6 . . . . . 2 2 . 1 3 . Catastrophic 11 | . 2 1 1 . . . 1 . . . . . 2 . . . . . . . . . . . . 1 . 1 2 . Database Lockouts . | . . . . . . . . . . . . . . . . . . . . . . . . . . . . . . . Manual 98 | . 15 1 25 4 1 . 18 10 . . . 1 5 . . 4 . . 8 . . . . . 2 1 . . 3 . Terminals 118 | . 15 1 29 4 . . 20 15 . . . . 19 1 . . . . 8 . . . . 1 . 2 . 3 . . Fabricators 5 | . . . . . . . . . . . . . 5 . . . . . . . . . . . . . . . . . Repair Stations 8 | . . . 2 . . . 4 . . . . . 2 . . . . . . . . . . . . . . . . . Recycling Units 28 | . 7 . 5 . . . 7 4 . . . . . . . . . . . . . . . . 2 . . . 3 . Scanalyzers 16 | . . . 12 . . . 2 2 . . . . . . . . . . . . . . . . . . . . . . Garrison Access . | . . . . . . . . . . . . . . . . . . . . . . . . . . . . . . . Terminal Hacks 144 | . 6 1 10 2 2 . 6 7 . 1 29 . 7 14 9 . . . 1 2 1 18 . 1 . . 25 2 . . Record 61 | . . . . . 1 . . . . . 8 . . 12 8 . . . . 1 . 6 . . . . 25 . . . Part Schematic 18 | . . . . . . . . 2 . . 11 . 1 . . . . . . . . 4 . . . . . . . . Robot Schematic 7 | . . . . . . . . . . . 7 . . . . . . . . . . . . . . . . . . . Robot Analysis 15 | . 3 . 5 1 . . 1 . . . . . 1 . . . . . . . . 4 . . . . . . . . Prototype ID Bank 14 | . . . 3 . . . 1 1 . . 3 . 1 . . . . . . . . 4 . . . . . 1 . . Open Door 9 | . . 1 . 1 . . . . . 1 . . . 2 1 . . . . 1 1 . . 1 . . . . . . Level Access Points 1 | . . . . . . . . . . . . . . . . . . . . . . . . . . . . 1 . . Branch Access Points 4 | . . . . . . . 1 1 . . . . 1 . . . . . 1 . . . . . . . . . . . Terminal Index 1 | . . . . . . . . . . . . . 1 . . . . . . . . . . . . . . . . . Locate Traps 9 | . 3 . 1 . . . 2 2 . . . . 1 . . . . . . . . . . . . . . . . . Hauler Manifests 2 | . . . 1 . . . 1 . . . . . . . . . . . . . . . . . . . . . . . Registered Components 2 | . . . . . . . . 1 . . . . 1 . . . . . . . . . . . . . . . . . EX-Prototype ID Bank 1 | . . . . . 1 . . . . . . . . . . . . . . . . . . . . . . . . . Fabricator Hacks 1 | . . . . . . . . . . . . . 1 . . . . . . . . . . . . . . . . . Build 1 | . . . . . . . . . . . . . 1 . . . . . . . . . . . . . . . . . Repair Station Hacks 8 | . . . 2 . . . 4 . . . . . 2 . . . . . . . . . . . . . . . . . Scan Component 4 | . . . 1 . . . 2 . . . . . 1 . . . . . . . . . . . . . . . . . Repair 4 | . . . 1 . . . 2 . . . . . 1 . . . . . . . . . . . . . . . . . Recycling Unit Hacks 6 | . 2 . 1 . . . 2 1 . . . . . . . . . . . . . . . . . . . . . . Retrieve Matter 2 | . 1 . . . . . 1 . . . . . . . . . . . . . . . . . . . . . . . Retrieve Components 4 | . 1 . 1 . . . 1 1 . . . . . . . . . . . . . . . . . . . . . . Scanalyzer 14 | . . . 12 . . . 2 . . . . . . . . . . . . . . . . . . . . . . . Insert Component 10 | . . . 8 . . . 2 . . . . . . . . . . . . . . . . . . . . . . . Analyze 4 | . . . 4 . . . . . . . . . . . . . . . . . . . . . . . . . . . Garrison Access Hacks . | . . . . . . . . . . . . . . . . . . . . . . . . . . . . . . . Unauthorized Hacks 29 | . 6 . 8 . . . 8 5 . . . . 1 . . . . . 1 . . . . . . . . . . . Terminals 16 | . 3 . 4 . . . 5 2 . . . . 1 . . . . . 1 . . . . . . . . . . . Assimilate 2 | . . . 1 . . . 1 . . . . . . . . . . . . . . . . . . . . . . . Botnet 13 | . 3 . 3 . . . 3 2 . . . . 1 . . . . . 1 . . . . . . . . . . . Operators 1 | . . . . . . . 1 . . . . . . . . . . . . . . . . . . . . . . . Fabricators . | . . . . . . . . . . . . . . . . . . . . . . . . . . . . . . . Repair Stations . | . . . . . . . . . . . . . . . . . . . . . . . . . . . . . . . Recycling Units 13 | . 3 . 4 . . . 3 3 . . . . . . . . . . . . . . . . . . . . . . Reject 4 | . 1 . 1 . . . 1 1 . . . . . . . . . . . . . . . . . . . . . . Recyclers 4 | . 1 . 1 . . . 1 1 . . . . . . . . . . . . . . . . . . . . . . Mask 5 | . 1 . 2 . . . 1 1 . . . . . . . . . . . . . . . . . . . . . . Scanalyzers . | . . . . . . . . . . . . . . . . . . . . . . . . . . . . . . . Garrison Access . | . . . . . . . . . . . . . . . . . . . . . . . . . . . . . . . Data Cores Recovered 4 | . . . 3 . . . 1 . . . . . . . . . . . . . . . . . . . . . . . Used 2 | . . . 1 . . . 1 . . . . . . . . . . . . . . . . . . . . . . . Hacking Detections 50 | . 7 1 11 1 . . 9 6 . . . . 7 . . . . . 2 . . . . . 1 2 . 2 1 . Full Trace Events . | . . . . . . . . . . . . . . . . . . . . . . . . . . . . . . . Feedback Events . | . . . . . . . . . . . . . . . . . . . . . . . . . . . . . . . Feedback Blocked . | . . . . . . . . . . . . . . . . . . . . . . . . . . . . . . . Robot Schematics Acquired 7 | . . . . . . . . . . . 7 . . . . . . . . . . . . . . . . . . . Robots Built . | . . . . . . . . . . . . . . . . . . . . . . . . . . . . . . . Authchips . | . . . . . . . . . . . . . . . . . . . . . . . . . . . . . . . Time . | . . . . . . . . . . . . . . . . . . . . . . . . . . . . . . . Total Robot Build Rating . | . . . . . . . . . . . . . . . . . . . . . . . . . . . . . . . Part Schematics Acquired 27 | . . . 4 . . . . 2 . . 11 . 1 . . . . . . . . 4 . . . . . . . 5 Parts Built 2 | . . . . . . . . . . . . . 2 . . . . . . . . . . . . . . . . . Authchips . | . . . . . . . . . . . . . . . . . . . . . . . . . . . . . . . Time 53 | . . . . . . . . . . . . . 53 . . . . . . . . . . . . . . . . . Total Part Build Rating 12 | . . . . . . . . . . . . . 12 . . . . . . . . . . . . . . . . . Parts Repaired 4 | . . . 1 . . . 2 . . . . . 1 . . . . . . . . . . . . . . . . . Time 158 | . . . 32 . . . 82 . . . . . 44 . . . . . . . . . . . . . . . . . Parts Recycled . | . . . . . . . . . . . . . . . . . . . . . . . . . . . . . . . Recycled Matter . | . . . . . . . . . . . . . . . . . . . . . . . . . . . . . . . Retrieved Matter 123 | . . . . . . . 123 . . . . . . . . . . . . . . . . . . . . . . . Retrieved Components 25 | . 3 . 9 . . . 10 3 . . . . . . . . . . . . . . . . . . . . . . Parts Scanalyzed 4 | . . . 4 . . . . . . . . . . . . . . . . . . . . . . . . . . . Part Schematics Acquired 4 | . . . 4 . . . . . . . . . . . . . . . . . . . . . . . . . . . Parts Damaged . | . . . . . . . . . . . . . . . . . . . . . . . . . . . . . . . Bothacking | -11 -10 -10 -9 -9 -9 -8 -8 -7 -7 -7 -7 -6 -6 -6 -6 -6 -6 -5 -5 -5 -5 -5 -4 -4 -4 -4 -4 -4 -3 -3 ------------ Run | Scr Mat Min Mat Min Exi Min Mat Fac Low Low Dat Pro Fac Low Low Zio Dee Pro Fac Upp Upp Zhi Pro Fac Ext Cet Arc Hub Res Qua Used RIF Installer . | . . . . . . . . . . . . . . . . . . . . . . . . . . . . . . . Robots Hacked . | . . . . . . . . . . . . . . . . . . . . . . . . . . . . . . . Non-combat . | . . . . . . . . . . . . . . . . . . . . . . . . . . . . . . . Combat . | . . . . . . . . . . . . . . . . . . . . . . . . . . . . . . . Robot Hacks Applied . | . . . . . . . . . . . . . . . . . . . . . . . . . . . . . . . Relay Couplers Released 6 | . . . . . . . . . . . . . . . . . . . . . . . . . . . . . 4 2 Machine Destruction 2 | . . . . . . . . . . . . . . . . . . . . . . . . . . . . . . 2 Programmers 4 | . . . . . . . . . . . . . . . . . . . . . . . . . . . . . 4 . Fabnet Peak Effective % . | . . . . . . . . . . . . . . . . . . . . . . . . . . . . . . . Robots Rewired 13 | . . . . . . . . . . 2 . . . . 4 . . . . . . . . . 7 . . . . . Allies Hacked . | . . . . . . . . . . . . . . . . . . . . . . . . . . . . . . . Hacks Repelled . | . . . . . . . . . . . . . . . . . . . . . . . . . . . . . . . Allies | -11 -10 -10 -9 -9 -9 -8 -8 -7 -7 -7 -7 -6 -6 -6 -6 -6 -6 -5 -5 -5 -5 -5 -4 -4 -4 -4 -4 -4 -3 -3 -------- Run | Scr Mat Min Mat Min Exi Min Mat Fac Low Low Dat Pro Fac Low Low Zio Dee Pro Fac Upp Upp Zhi Pro Fac Ext Cet Arc Hub Res Qua Total Allies 57 | . . . . . . . . . . 2 . 1 . . 4 . . . . . . . . . 13 5 . . . 32 Largest Group 9 | . . . . . . . . . . 2 . 1 . . 4 4 4 . . . . . . . 8 8 5 . . 9 Highest-Rated Group 683 | . . . . . . . . . . 46 . 96 . . 118 118 118 . . . . . . . 463 683 498 . . 585 Highest-Rated Ally 159 | . . . . . . . . . . 30 . 96 . . 31 31 31 . . . . . . . 159 159 159 . . 65 Total Orders 16 | . . . . . . . . . . 2 . . . . . . 2 . 1 . . . . 2 6 . . 3 . . STAY 1 | . . . . . . . . . . 1 . . . . . . . . . . . . . . . . . . . . ROAM 1 | . . . . . . . . . . . . . . . . . 1 . . . . . . . . . . . . . FOLLOW 2 | . . . . . . . . . . 1 . . . . . . 1 . . . . . . . . . . . . . RETURN 12 | . . . . . . . . . . . . . . . . . . . 1 . . . . 2 6 . . 3 . . Ally Attacks 203 | . . . . . . . . . . 1 . 13 . . . . 45 . . . . . . . 31 80 33 . . . Total Damage 5798 | . . . . . . . . . . 14 . 525 . . . . 666 . . . . . . . 997 2409 1187 . . . Kills 39 | . . . . . . . . . . . . 3 . . . . 2 . . . . . . . 6 21 7 . . . Allies Corrupted 25 | . . . . . . . . . . . . . . . . . . . . . . . . . . . . . . 25 Allies Melted . | . . . . . . . . . . . . . . . . . . . . . . . . . . . . . . . Intel | -11 -10 -10 -9 -9 -9 -8 -8 -7 -7 -7 -7 -6 -6 -6 -6 -6 -6 -5 -5 -5 -5 -5 -4 -4 -4 -4 -4 -4 -3 -3 ------- Run | Scr Mat Min Mat Min Exi Min Mat Fac Low Low Dat Pro Fac Low Low Zio Dee Pro Fac Upp Upp Zhi Pro Fac Ext Cet Arc Hub Res Qua Robot Analysis Total 15 | . 3 . 5 1 . . 1 . . . . . 1 . . . . . . . . 4 . . . . . . . . Derelict Logs Recovered 19 | . . 2 . 2 . . . . 3 1 . 2 . 1 2 2 . 1 . 1 . . 2 . . . . . . . Drone Launches 12 | . . . . . . . . . . . . . . . . . . . 1 . . . . 2 6 . . 3 . . Drone Recoveries 12 | . . . . . . . . . . . . . . . . . . . 1 . . . . 2 6 . . 3 . . Decoded 0b10 Intel 33 | . . . . . . . . . . . . . 33 . . . . . . . . . . . . . . . . . Traps 27 | . . . . . . . . . . . . . 27 . . . . . . . . . . . . . . . . . Emergency Access 5 | . . . . . . . . . . . . . 5 . . . . . . . . . . . . . . . . . Garrisons 1 | . . . . . . . . . . . . . 1 . . . . . . . . . . . . . . . . . Exploration | -11 -10 -10 -9 -9 -9 -8 -8 -7 -7 -7 -7 -6 -6 -6 -6 -6 -6 -5 -5 -5 -5 -5 -4 -4 -4 -4 -4 -4 -3 -3 ------------- Run | Scr Mat Min Mat Min Exi Min Mat Fac Low Low Dat Pro Fac Low Low Zio Dee Pro Fac Upp Upp Zhi Pro Fac Ext Cet Arc Hub Res Qua Turns Passed 51103 | 140 934 480 2038 1059 904 611 3166 1475 2699 3884 743 1953 1801 1837 2125 1721 6155 3318 770 1525 1370 582 2505 585 1073 482 1074 1358 1541 1195 Spaces Moved 22180 | 76 567 464 1305 652 610 387 1467 681 1218 1180 84 971 827 986 1214 1006 2470 1199 406 916 591 141 695 154 363 157 54 535 575 229 Core 19 | 16 . . . . . . . . . . . . . . . . . . . . . . . . . . . . . 3 Treads 443 | . . . . . . . 15 . . 428 . . . . . . . . . . . . . . . . . . . . Legs 2277 | . . . . . . . . . . . . . . . . . 8 . . . . . 299 154 363 157 54 535 575 132 Wheels 19347 | 60 567 464 1305 652 610 387 1452 681 1218 752 84 971 827 986 1214 1006 2462 1199 406 916 591 141 396 . . . . . . . Hover . | . . . . . . . . . . . . . . . . . . . . . . . . . . . . . . . Flight 94 | . . . . . . . . . . . . . . . . . . . . . . . . . . . . . . 94 Fastest Speed 50 | 50 95 95 95 145 145 145 140 140 150 150 160 160 160 160 160 160 145 205 160 160 160 190 220 210 210 210 210 210 210 205 Average Speed 174 | 89 99 95 113 146 145 145 155 157 150 264 160 160 161 174 160 169 184 209 161 160 202 190 234 210 210 233 243 214 239 245 Slowest Speed 3100 | 100 100 95 145 210 145 145 405 225 150 650 160 175 175 175 175 205 240 220 220 160 220 220 360 210 210 240 270 240 240 3100 Overloaded Moves . | . . . . . . . . . . . . . . . . . . . . . . . . . . . . . . . Propulsion Burnouts . | . . . . . . . . . . . . . . . . . . . . . . . . . . . . . . . Robots Hopped . | . . . . . . . . . . . . . . . . . . . . . . . . . . . . . . . Cave-ins Triggered . | . . . . . . . . . . . . . . . . . . . . . . . . . . . . . . . Teleports 2 | . . . . . . . . . . . . . . . . . . . . . . . . . . . . . . 2 Exploration Rate (%) 68 | 4 99 97 87 96 72 99 86 16 97 91 72 94 30 95 99 85 84 98 9 83 63 62 87 6 61 71 78 56 23 31 Regions Visited 30 Branch Regions 22 Pre-discovered Areas 15 | . . 1 . 1 1 . . . 1 . 1 1 . 1 2 1 . 1 . . . 3 1 . . . . . . . Known Exits Taken 26 | . . . 1 1 1 1 1 1 1 1 1 1 1 1 1 1 1 1 1 1 1 1 1 1 1 1 1 1 . . Unknown Exits Taken 4 | 1 1 1 . . . . . . . . . . . . . . . . . . . . . . . . . . 1 . Scrap Searched 46 | . . 1 . . . 1 . . 1 12 . 3 . 10 5 2 . 4 . 2 4 . 1 . . . . . . . Spaces Dug 73 | . 8 . 7 . . . 2 . 3 . . . . . . . 16 . . . . . . 6 21 . . 4 2 4 Terrain Destroyed 695 | . 8 . 7 36 . 76 12 . 3 18 . 4 . . . . 61 23 17 54 30 . 35 9 40 8 5 164 14 71 Melee 20 | . 8 . 7 . . . 2 . 3 . . . . . . . . . . . . . . . . . . . . . Projectile 323 | . . . . . . . 10 . . 18 . 4 . . . . 61 23 17 12 30 . 35 9 40 8 5 16 14 21 AOE 352 | . . . . 36 . 76 . . . . . . . . . . . . . 42 . . . . . . . 148 . 50 Terrain Rammed . | . . . . . . . . . . . . . . . . . . . . . . . . . . . . . . . Walls Destroyed . | . . . . . . . . . . . . . . . . . . . . . . . . . . . . . . . Machines Disabled . | . . . . . . . . . . . . . . . . . . . . . . . . . . . . . . . Actions | -11 -10 -10 -9 -9 -9 -8 -8 -7 -7 -7 -7 -6 -6 -6 -6 -6 -6 -5 -5 -5 -5 -5 -4 -4 -4 -4 -4 -4 -3 -3 --------- Run | Scr Mat Min Mat Min Exi Min Mat Fac Low Low Dat Pro Fac Low Low Zio Dee Pro Fac Upp Upp Zhi Pro Fac Ext Cet Arc Hub Res Qua Total 32982 | 113 819 495 1698 710 635 411 2180 992 2079 1836 693 1346 1220 1063 1372 1023 3876 1926 496 948 716 459 1525 401 620 233 987 687 706 717 Wait 8668 | 3 151 17 215 21 . 7 528 211 849 511 610 337 314 51 63 . 1030 642 52 13 95 305 792 225 130 33 905 108 95 355 Move 22150 | 75 566 463 1304 651 609 386 1466 680 1217 1179 83 970 826 985 1213 1005 2469 1198 405 915 590 140 694 153 362 156 53 534 574 229 Hop . | . . . . . . . . . . . . . . . . . . . . . . . . . . . . . . . Pick Up 297 | 12 15 6 37 4 7 . 30 14 1 30 . 9 14 2 4 5 78 3 1 . 4 1 4 . . . 1 . 4 11 Fast Attach 103 | 2 2 . 2 1 3 1 6 3 . 4 . 1 6 2 2 1 17 12 6 2 . 3 1 4 1 6 5 5 2 3 Attach 73 | 4 2 . 5 1 1 . 11 3 . 5 . 5 2 1 . 2 23 . . . . 1 . . . . . . 1 6 Detach 28 | . 1 . . . 2 . 3 . . 2 . 1 . . . 2 14 . . 1 . . . . . . . 2 . . Swap 168 | . 10 2 25 7 . 3 22 13 6 15 . 4 7 1 4 2 15 . 2 1 . . 2 4 14 . . 4 2 3 Drop 418 | . 11 3 28 3 13 1 34 19 1 28 . 8 22 5 6 6 101 30 13 2 5 9 10 8 2 8 16 7 10 9 Fire 883 | 17 47 4 71 22 . 13 75 49 2 55 . 11 29 16 12 . 129 41 17 14 22 . 22 7 27 30 7 26 18 100 Melee 34 | . 14 . 11 . . . 5 . 3 . . . . . . . . . . . . . . . . . . . . 1 Ram . | . . . . . . . . . . . . . . . . . . . . . . . . . . . . . . . Kick 1 | . . . . . . . . . . . . . . . . . . . . . . . . . . . . 1 . . Crush . | . . . . . . . . . . . . . . . . . . . . . . . . . . . . . . . Escape Stasis . | . . . . . . . . . . . . . . . . . . . . . . . . . . . . . . . Rewire 159 | . . . . . . . . . . 7 . . . . 68 . . . . . . . . . 84 . . . . . Trap . | . . . . . . . . . . . . . . . . . . . . . . . . . . . . . . . Miscellaneous . | . . . . . . . . . . . . . . . . . . . . . . . . . . . . . . . Route ------- -11/Scrapyard -10/Materials (discovered 5 exits: *Mat x3 / *Min x2) -10/Mines (discovered 2 exits: *Mat x2) -9/Materials (discovered 5 exits: *Mat x3 / *Min / *Sto) -9/Mines (discovered 3 exits: *Mat x2 / *Exi) -9/Exiles (discovered 2 exits: *Min x2) -8/Mines (discovered 2 exits: *Mat x2) -8/Materials (discovered 2 exits: *Fac x2) -7/Factory (discovered 2 exits: *Low x2) -7/Lower Caves -7/Lower Caves (discovered 2 exits: *Fac / *Dat) -7/Data Miner -6/Proximity Caves -6/Factory (discovered 3 exits: Fac / *Low x2) -6/Lower Caves -6/Lower Caves (discovered 2 exits: *Fac / *Zio) -6/Zion (discovered 2 exits: *Dee / *Pro) -6/Deep Caves -5/Proximity Caves -5/Factory (discovered 6 exits: Fac x4 / *Upp x2) -5/Upper Caves -5/Upper Caves (discovered 2 exits: *Fac / *Zhi) -5/Zhirov -4/Proximity Caves -4/Factory (discovered 3 exits: Res / *Upp / *Ext) -4/Extension (discovered 2 exits: *Res / *Cet) -4/Cetus (discovered 2 exits: *Res / *Arc) -4/Archives -4/Hub_04(d) (discovered 4 exits: *Res x4) -3/Research (discovered 2 exits: [*Res] / [*Qua]) -3/Quarantine History --------- Turn | Location | Event 10 | -11/Scrapyard | Discovered new exit (range 14) 141 | -11/Scrapyard | Entered Materials 203 | -10/Materials | Discovered new exit (range 9) 300 | -10/Materials | Discovered new exit (range 7) 315 | -10/Materials | Build established: Mutant 445 | -10/Materials | Discovered new exit (range 13) 576 | -10/Materials | Discovered new exit (range 8) 657 | -10/Materials | Discovered new exit (range 8) 1075 | -10/Materials | Entered Mines 1093 | -10/Mines | Learned Materials security intel 1166 | -10/Mines | Learned location of Zion (-6) 1170 | -10/Mines | Met a Derelict shopkeep closing up shop 1225 | -10/Mines | Discovered new exit (range 5) 1244 | -10/Mines | Discovered new exit (range 16) 1554 | -10/Mines | Received a Rocket Launcher from a helpful Derelict 1555 | -10/Mines | Entered Materials 1555 | -9/Materials | Evolved 2 slots: Utility x2 1557 | -9/Materials | Discovered new exit (range 8) 1666 | -9/Materials | Identified exit to Storage 1993 | -9/Materials | Discovered new exit (range 17) 2035 | -9/Materials | Identified exit to Materials 2307 | -9/Materials | Discovered new exit (range 13) 2345 | -9/Materials | Build established: Scavenger-Skirmisher 2596 | -9/Materials | Discovered exit to Materials (range 4) 2820 | -9/Materials | Build established: Scavenger-Mutant 2942 | -9/Materials | Discovered exit to Materials (range 12) 3246 | -9/Materials | Repaired Arm. Wheel 3334 | -9/Materials | Identified exit to Mines 3546 | -9/Materials | Build established: Scavenger-Skirmisher 3593 | -9/Materials | Entered Mines 3594 | -9/Mines | Assembled infested the area 3598 | -9/Mines | Met a Derelict bent on vengeance 3599 | -9/Mines | Assisted by a Guerilla fighting off Assembled 3712 | -9/Mines | Met a Derelict who couldn't figure out how to use a Trap Extractor 3723 | -9/Mines | Destroyed 8 combat bots 3892 | -9/Mines | Discovered exit to Materials (range 5) 3939 | -9/Mines | Build established: Mutant 4100 | -9/Mines | Learned location of 1 exit from Proximity Caves 4117 | -9/Mines | Discovered exit to Materials (range 7) 4542 | -9/Mines | Learned location of Storage (-9) 4646 | -9/Mines | Deemed a non-threat by the Exiles lab entrance 4646 | -9/Mines | Discovered new exit (range 5) 4651 | -9/Mines | Identified exit to Exiles 4652 | -9/Mines | Entered Exiles 4676 | -9/Exiles | Discovered new exit (range 16) 4702 | -9/Exiles | Identified exit to Mines 4733 | -9/Exiles | Met 8R-AWN 4756 | -9/Exiles | Met EX-HEX 4810 | -9/Exiles | Met EX-DEC 4846 | -9/Exiles | Met EX-BIN 4869 | -9/Exiles | Aligned with FarCom system 4871 | -9/Exiles | Given EX-Vault access code 4904 | -9/Exiles | Opened EX-Vault 4914 | -9/Exiles | Found AWS/Autocannon 4946 | -9/Exiles | Warned to stay clear of 0b10 Research branches 5255 | -9/Exiles | Discovered exit to Mines (range 15) 5556 | -9/Exiles | Left Exiles lab with AWS/Autocannon 5556 | -9/Exiles | Entered Mines 5568 | -8/Mines | Core integrity fell below 50% 5843 | -8/Mines | Discovered exit to Materials (range 12) 5910 | -8/Mines | Discovered exit to Materials (range 4) 6166 | -8/Mines | System corruption reached 10% 6167 | -8/Mines | Entered Materials 6167 | -8/Materials | Evolved 2 slots: Utility x1, Weapon x1 6460 | -8/Materials | Build established: Scavenger-Skirmisher 6501 | -8/Materials | Garrison activated, responded to threat 6588 | -8/Materials | Lost 3 parts (1n2u) 6606 | -8/Materials | Destroyed 14 combat bots 7075 | -8/Materials | Discovered new exit (range 16) 7118 | -8/Materials | Identified exit to Factory 7524 | -8/Materials | Build established: Scavenger-Tank 7834 | -8/Materials | Garrison activated, responded to threat 8102 | -8/Materials | Discovered exit to Factory (range 16) 8124 | -8/Materials | Build established: Scavenger-Skirmisher 8405 | -8/Materials | Repaired Gauss Rifle 8514 | -8/Materials | Repaired Arm. Treads 8952 | -8/Materials | Garrison activated, responded to threat 9333 | -8/Materials | Entered Factory 9333 | -7/Factory | Evolved 2 slots: Utility x2 9334 | -7/Factory | Identified exit to Lower Caves 9631 | -7/Factory | Build established: Skirmisher 10230 | -7/Factory | Build established: Tank 10808 | -7/Factory | Entered Lower Caves 11326 | -7/Lower Caves | Identified exit to Lower Caves 11401 | -7/Lower Caves | Build established: Scavenger-Skirmisher 11462 | -7/Lower Caves | Spotted B-75 Beast 11745 | -7/Lower Caves | Encountered a Warlord checkpoint 11785 | -7/Lower Caves | Learned 4 Factory zone layouts 12235 | -7/Lower Caves | Build established: Skirmisher 13480 | -7/Lower Caves | Build established: Scavenger-Skirmisher 13507 | -7/Lower Caves | Entered another Lower Caves area 13508 | -7/Lower Caves | Encountered a Warlord checkpoint 13512 | -7/Lower Caves | Learned location of 1 exit from Proximity Caves 13551 | -7/Lower Caves | Discovered new exit (range 14) 13569 | -7/Lower Caves | Identified exit to Factory 13608 | -7/Lower Caves | Attracted the attention of an 0b10 outpost 13694 | -7/Lower Caves | Destroyed 9 combat bots 13952 | -7/Lower Caves | Build established: Gunner 14701 | -7/Lower Caves | Build established: Skirmisher 14856 | -7/Lower Caves | Lost 4 parts (1n2u1w) 16295 | -7/Lower Caves | Build established: Derelict-Skirmisher 16505 | -7/Lower Caves | Discovered new exit (range 14) 16797 | -7/Lower Caves | Identified exit to Data Miner 17391 | -7/Lower Caves | Entered Data Miner 17391 | -7/Data Miner | Discovered new exit (range 6) 17411 | -7/Data Miner | Identified exit to Proximity Caves 17425 | -7/Data Miner | Met Data Miner 17463 | -7/Data Miner | Learned location of Section 7 (-3) 17463 | -7/Data Miner | Acquired the access code to Warlord's prototype stash 17487 | -7/Data Miner | Received God Mode back door access code from Data Miner 18134 | -7/Data Miner | Entered Proximity Caves 18572 | -6/Proximity Caves | Escorted by Enhanced Grunt 18800 | -6/Proximity Caves | Attracted the attention of an 0b10 checkpoint 18843 | -6/Proximity Caves | Learned 4 Factory zone layouts 19310 | -6/Proximity Caves | Spotted B-75 Beast 19698 | -6/Proximity Caves | Build established: Derelict-Tank 20039 | -6/Proximity Caves | Acquired the password to a Derelict Tinkerer's latest research 20051 | -6/Proximity Caves | Found Prototype Special Weapon 20053 | -6/Proximity Caves | Identified Molecular Deconstructor 20087 | -6/Proximity Caves | Entered Factory 20087 | -6/Factory | Evolved 2 slots: Power x1, Utility x1 20088 | -6/Factory | Identified exit to Factory 20375 | -6/Factory | Build established: Derelict-Skirmisher 20535 | -6/Factory | Repaired Arm. Huge Wheel 20800 | -6/Factory | Fabricated Hvy. Phase Cannon? 21296 | -6/Factory | Identified exit to Lower Caves 21440 | -6/Factory | Found Launcher Loader 21600 | -6/Factory | Build established: Skirmisher 21888 | -6/Factory | Entered Lower Caves 23073 | -6/Lower Caves | Discovered new exit (range 14) 23093 | -6/Lower Caves | Identified exit to Lower Caves 23437 | -6/Lower Caves | Learned Factory emergency access door positions 23499 | -6/Lower Caves | Learned Factory trap positions 23499 | -6/Lower Caves | Learned Armory emergency access door positions 23499 | -6/Lower Caves | Learned Factory stockpile data 23499 | -6/Lower Caves | Learned Factory security intel 23499 | -6/Lower Caves | Learned Research security intel 23499 | -6/Lower Caves | Learned Armory security intel 23499 | -6/Lower Caves | Learned Extension garrison access intel 23725 | -6/Lower Caves | Entered another Lower Caves area 23914 | -6/Lower Caves | Learned location of Extension (-4) 23914 | -6/Lower Caves | Learned Extension trap positions 23914 | -6/Lower Caves | Learned Extension stockpile data 23914 | -6/Lower Caves | Learned Factory security intel 23914 | -6/Lower Caves | Learned Extension garrison access intel 24051 | -6/Lower Caves | Build established: Derelict-Skirmisher 24080 | -6/Lower Caves | Discovered exit to Factory (range 6) 24120 | -6/Lower Caves | Learned Factory terminal intel 24364 | -6/Lower Caves | Attacked by a delusional Derelict stockpiling Unaware 24775 | -6/Lower Caves | Build established: Commander-Skirmisher 25646 | -6/Lower Caves | Encountered a Warlord checkpoint 25816 | -6/Lower Caves | Discovered new exit (range 4) 25821 | -6/Lower Caves | Identified exit to Zion 25850 | -6/Lower Caves | Entered Zion 25850 | -6/Zion | Accompanied by 4 allies 25932 | -6/Zion | Acquired unknown access codes intercepted by a Zionite 26018 | -6/Zion | Discovered new exit (range 15) 26039 | -6/Zion | Identified exit to Proximity Caves 26134 | -6/Zion | Learned Factory interactive machine intel 26208 | -6/Zion | Found CR-A16's Pointy Stick 26461 | -6/Zion | Learned Factory emergency access door positions 26517 | -6/Zion | Given the Hacking Drone Bay 26518 | -6/Zion | Found Prototype Device 26797 | -6/Zion | Learned location of 1 exit from Lower Caves 27093 | -6/Zion | Identified Hacking Drone Bay 27454 | -6/Zion | Build established: Commander-Tank 27534 | -6/Zion | Opened final containment barrier to the Deep Caves 27565 | -6/Zion | Discovered new exit (range 3) 27565 | -6/Zion | Saw the warning signs outside the Deep Caves entrance 27567 | -6/Zion | Identified exit to Deep Caves 27571 | -6/Zion | Entered Deep Caves 27571 | -6/Deep Caves | Accompanied by 4 allies 27834 | -6/Deep Caves | Z-Facility disabled 27888 | -6/Deep Caves | Attacked by Z-Imprinter 27894 | -6/Deep Caves | Destroyed Z-Imprinter 28177 | -6/Deep Caves | Build established: Tank 28236 | -6/Deep Caves | Found Prototype Protection 28236 | -6/Deep Caves | Identified Zio. Weapon Casing 28354 | -6/Deep Caves | Found Prototype Protection 28387 | -6/Deep Caves | Identified Zio. Heavy Carapace 28469 | -6/Deep Caves | Found Zio. Weapon Casing 28480 | -6/Deep Caves | Found Zio. Weapon Casing 28497 | -6/Deep Caves | Found Zio. Weapon Casing 29391 | -6/Deep Caves | Discovered new exit (range 6) 29403 | -6/Deep Caves | Identified exit to Proximity Caves 29607 | -6/Deep Caves | Found Zio. Weapon Casing 30157 | -6/Deep Caves | Spotted as-82064 30184 | -6/Deep Caves | Exposed GOLEM chamber 30186 | -6/Deep Caves | Destroyed as-82064 30389 | -6/Deep Caves | Found Zio. Weapon Casing 30517 | -6/Deep Caves | Build established: Mutant 31049 | -6/Deep Caves | Triggered Deep Caves wall 31054 | -6/Deep Caves | Destroyed AS-14854 31064 | -6/Deep Caves | Spotted AS-73236 31071 | -6/Deep Caves | Destroyed AS-73236 31092 | -6/Deep Caves | Destroyed 38 combat bots 31129 | -6/Deep Caves | Build established: Scavenger-Mutant 31969 | -6/Deep Caves | Spotted as-96265 32016 | -6/Deep Caves | Destroyed as-96265 32166 | -6/Deep Caves | Found GOLEM Unit 32171 | -6/Deep Caves | Found GOLEM Unit 32176 | -6/Deep Caves | Found GOLEM Unit 32200 | -6/Deep Caves | Found GOLEM Unit 32205 | -6/Deep Caves | Found GOLEM Unit 32209 | -6/Deep Caves | Found GOLEM Unit 32214 | -6/Deep Caves | Found GOLEM Unit 32231 | -6/Deep Caves | Found GOLEM Unit 32255 | -6/Deep Caves | Found GOLEM Unit 32260 | -6/Deep Caves | Found GOLEM Unit 32442 | -6/Deep Caves | Found GOLEM Unit 32487 | -6/Deep Caves | Found GOLEM Unit 32494 | -6/Deep Caves | Build established: Hauler-Gunner 32520 | -6/Deep Caves | Found GOLEM Unit 32525 | -6/Deep Caves | Found GOLEM Unit 32537 | -6/Deep Caves | Found Longsword +1 32892 | -6/Deep Caves | Build established: Hauler-Golem 33726 | -6/Deep Caves | Entered Proximity Caves 34158 | -5/Proximity Caves | Attracted the attention of an 0b10 checkpoint 35565 | -5/Proximity Caves | Build established: Hauler-Skirmisher 35569 | -5/Proximity Caves | Received a Behemoth hack from an annoying Tinkerer 36531 | -5/Proximity Caves | Build established: Hauler-Golem 37044 | -5/Proximity Caves | Entered Factory 37044 | -5/Factory | Evolved 2 slots: Utility x2 37045 | -5/Factory | Loaded intel: 133 trap records 37049 | -5/Factory | Loaded intel: 52 interactive machine locations 37050 | -5/Factory | Loaded intel: 26 terminal locations 37443 | -5/Factory | Identified exit to Factory 37621 | -5/Factory | Identified exit to Upper Caves 37814 | -5/Factory | Entered Upper Caves 37816 | -5/Upper Caves | Attracted the attention of an 0b10 checkpoint 37844 | -5/Upper Caves | Encountered a Warlord checkpoint 38276 | -5/Upper Caves | Found Alien Artifact 38276 | -5/Upper Caves | Identified Dimensional Node Initializer 38276 | -5/Upper Caves | Initialized slip node 39098 | -5/Upper Caves | Learned Factory emergency access door positions 39104 | -5/Upper Caves | Discovered new exit (range 8) 39114 | -5/Upper Caves | Identified exit to Upper Caves 39339 | -5/Upper Caves | Entered another Upper Caves area 39461 | -5/Upper Caves | Discovered exit to Factory (range 5) 40249 | -5/Upper Caves | Discovered new exit (range 8) 40278 | -5/Upper Caves | Identified exit to Zhirov 40709 | -5/Upper Caves | Entered Zhirov 40711 | -5/Zhirov | Discovered new exit (range 3) 40787 | -5/Zhirov | Learned location of Quarantine (-3) 40787 | -5/Zhirov | Learned location of Testing (-2) 40787 | -5/Zhirov | Learned location of Command (-1) 40852 | -5/Zhirov | Found Alien Artifact 40852 | -5/Zhirov | Identified Integrated Dissipator 40852 | -5/Zhirov | Installed Integrated Dissipator, increased core heat dissipation (+20) 40958 | -5/Zhirov | Found Alien Artifact 41064 | -5/Zhirov | Identified exit to Proximity Caves 41291 | -5/Zhirov | Entered Proximity Caves 41990 | -4/Proximity Caves | Spotted B-86 Titan 42593 | -4/Proximity Caves | Learned Research garrison access intel 43298 | -4/Proximity Caves | Discovered exit to Factory (range 9) 43796 | -4/Proximity Caves | Entered Factory 43796 | -4/Factory | Evolved 2 slots: Utility x2 43797 | -4/Factory | Identified exit to Research 43954 | -4/Factory | Discovered new exit (range 11) 43977 | -4/Factory | Identified exit to Upper Caves 44372 | -4/Factory | Discovered new exit (range 6) 44379 | -4/Factory | Identified exit to Extension 44381 | -4/Factory | Entered Extension 44382 | -4/Extension | Loaded intel: 19 trap records 44751 | -4/Extension | Identified exit to Cetus 44834 | -4/Extension | Rescued a captive Derelict 44834 | -4/Extension | Rescued a captive Derelict 45197 | -4/Extension | Rescued a captive Derelict 45263 | -4/Extension | Rescued a captive Derelict 45264 | -4/Extension | Rescued a captive Derelict 45380 | -4/Extension | Rescued A7 45437 | -4/Extension | Discovered exit to Research (range 10) 45454 | -4/Extension | Entered Cetus 45454 | -4/Cetus | Accompanied by 8 allies (A7) 45459 | -4/Cetus | Acquired a Cetus Manufacturing Module code from A7 45483 | -4/Cetus | Spotted Cetus Guard 45483 | -4/Cetus | Spotted Cetus Guard 45485 | -4/Cetus | Spotted Cetus Guard 45485 | -4/Cetus | Spotted Cetus Guard 45487 | -4/Cetus | Allies destroyed Cetus Guard 45493 | -4/Cetus | Allies destroyed Cetus Guard 45504 | -4/Cetus | Allies destroyed Cetus Guard 45507 | -4/Cetus | Allies destroyed Cetus Guard 45623 | -4/Cetus | Started Cetus Manufacturing Module 45641 | -4/Cetus | Escorted A7 to Cetus Mainframe 45648 | -4/Cetus | Manufactured an Enhanced Grunt 45673 | -4/Cetus | Manufactured an Enhanced Grunt 45691 | -4/Cetus | Discovered new exit (range 15) 45698 | -4/Cetus | Manufactured an Enhanced Grunt 45723 | -4/Cetus | Manufactured an Enhanced Grunt 45735 | -4/Cetus | Spotted Cetus Guard 45735 | -4/Cetus | Spotted Cetus Guard 45738 | -4/Cetus | Spotted Cetus Guard 45740 | -4/Cetus | Spotted Cetus Guard 45747 | -4/Cetus | Allies destroyed Cetus Guard 45748 | -4/Cetus | Manufactured an Enhanced Grunt 45750 | -4/Cetus | Allies destroyed Cetus Guard 45762 | -4/Cetus | Allies destroyed Cetus Guard 45764 | -4/Cetus | Discovered exit to Research (range 16) 45776 | -4/Cetus | Found Prototype Device 45776 | -4/Cetus | Identified Exp. Thermal Shield 45788 | -4/Cetus | Met Revision 17 45864 | -4/Cetus | Identified exit to Archives 45936 | -4/Cetus | Entered Archives 45936 | -4/Archives | Accompanied by 5 allies (A7) 45941 | -4/Archives | Received a hacking code to weaken MAIN.C 45941 | -4/Archives | Destroyed A7 45945 | -4/Archives | Extracted ID and sensor layout for unrecognized location from A7's data core 45997 | -4/Archives | Met Zhirov 46003 | -4/Archives | Reinforcements dispatched to Archives 46047 | -4/Archives | Read partially decrypted archive contents 46048 | -4/Archives | Reinforcements dispatched to Archives 46050 | -4/Archives | Zhirov warped through subspace 46054 | -4/Archives | Discovered new exit (range 16) 46068 | -4/Archives | Zhirov detonated Archives 46090 | -4/Archives | Identified exit to Hub_04(d) 47010 | -4/Archives | Entered Hub_04(d) 48284 | -4/Hub_04(d) | Network Hub disabled 48342 | -4/Hub_04(d) | Network Hub disabled 48342 | -4/Hub_04(d) | Spotted Lightning 48342 | -4/Hub_04(d) | Spotted Lightning 48342 | -4/Hub_04(d) | Spotted Lightning 48358 | -4/Hub_04(d) | System corruption reached 10% 48368 | -4/Hub_04(d) | Entered Research 48368 | -3/Research | Evolved 2 slots: Utility x2 48370 | -3/Research | Loaded intel: 4 garrison access locations 48568 | -3/Research | Revision forces began assault on 0b10 48612 | -3/Research | Met up with Revision 17++ 49068 | -3/Research | Research terminal network offline 49233 | -3/Research | Discovered new exit (range 9) 49473 | -3/Research | Discovered new exit (range 5) 49595 | -3/Research | Found Prototype Launcher 49603 | -3/Research | Identified Com. Tesla Bomb Launcher 49725 | -3/Research | Found Gamma Bomb Array 49773 | -3/Research | Spotted Striker 49869 | -3/Research | Spotted Striker 49871 | -3/Research | Spotted Striker 49879 | -3/Research | Destroyed Striker 49909 | -3/Research | Entered Quarantine 49910 | -3/Quarantine | Maximum security lockdown engaged 49953 | -3/Quarantine | Found Alien Artifact 49953 | -3/Quarantine | Identified Core Reset Matrix 49953 | -3/Quarantine | Identified Transdimensional Reconstructor 49953 | -3/Quarantine | Used Core Reset Matrix 49957 | -3/Quarantine | Detected hypermatrix surge 49957 | -3/Quarantine | Sensed 14 artifacts in vicinity 50028 | -3/Quarantine | Cryocooling Duct disabled 50030 | -3/Quarantine | Cryocooling Duct disabled 50043 | -3/Quarantine | Ambient heat levels rising (+20) 50045 | -3/Quarantine | Ambient heat levels rising (+20) 50048 | -3/Quarantine | Garrison activated, responded to threat 50080 | -3/Quarantine | Spotted Striker 50090 | -3/Quarantine | Destroyed Striker 50118 | -3/Quarantine | Destroyed 19 combat bots 50133 | -3/Quarantine | Spotted Investigator 50152 | -3/Quarantine | Destroyed Investigator 50168 | -3/Quarantine | Destroyed 10 combat bots 50353 | -3/Quarantine | Spotted Striker 50353 | -3/Quarantine | Spotted Executioner 50353 | -3/Quarantine | Spotted Executioner 50359 | -3/Quarantine | Destroyed Striker 50361 | -3/Quarantine | Destroyed Executioner 50378 | -3/Quarantine | Destroyed Executioner 50414 | -3/Quarantine | Destroyed 9 combat bots 50520 | -3/Quarantine | Spotted Executioner 50524 | -3/Quarantine | Spotted Executioner 50527 | -3/Quarantine | Spotted Striker 50573 | -3/Quarantine | Destroyed 22 combat bots 50751 | -3/Quarantine | Spotted Executioner 50754 | -3/Quarantine | Destroyed Executioner 50769 | -3/Quarantine | System corruption reached 10% 50771 | -3/Quarantine | Spotted Executioner 50788 | -3/Quarantine | Destroyed Executioner 50811 | -3/Quarantine | Destroyed 25 combat bots 50819 | -3/Quarantine | Core integrity fell below 50% 50858 | -3/Quarantine | Core integrity fell below 20% 50860 | -3/Quarantine | System corruption reached 30% 50880 | -3/Quarantine | Lost 18 parts (1p2n12u3w) 50922 | -3/Quarantine | Found Hpw. Transdimensional Reconstructor 50946 | -3/Quarantine | Warped through subspace 51022 | -3/Quarantine | Warped through subspace 51072 | -3/Quarantine | Found Core Cannon 51084 | -3/Quarantine | Spotted Investigator 51097 | -3/Quarantine | Destroyed Investigator 51105 | -3/Quarantine | Core destroyed Last Messages --------------- 51097_ Beam penetrates Investigator. 51097_ Investigator suffers critical hit (Destroy). 51097_ Destroyed Unknown Hover Unit. 51097_ Destroyed Prototype Launcher. 51097_ Investigator destroyed. 51097_ Beam penetrates Door. 51099_ Overheating: Asb. Alloy Armor damaged (-33). 51099_ Overheating: Asb. Focal Cannon damaged (-88). 51099_ Overheating: GOLEM Unit damaged (-33). 51099_ Penetrated by Slug. 51099_ Slug penetrates Wall. 51101_ Dropped Zio. Biocell. 51102_ Extracted 600 energy. 51102_ System corrupted: Core Cannon failed to cycle. 51103_ Overheating: Energy bleed (-128). 51104_ Beam penetrates P-80 Master. 51104_ P-80 Master suffers critical hit (Destroy). 51104_ Destroyed Unknown Energy Gun. 51104_ Beam penetrates Wall. 51105_ Overheating: Core damaged (-260). Map ----- +----------------------------------------------------+ | | | | | | | | | | | | | ?????????????????????????????????????????????????? | | ?????????????????????????????????????????????????? | | ?????????????????????????????????????????????????? | | ?????????????????????????????????????????????????? | | ?????????????????????????????????????????????????? | | ?????????????????????????????????????????????????? | | ?????????????????????????????????????????????????? | | ?????????????????????????????????????????????????? | | ?????????????????????????????????????????????????? | | ?????????????????????????????????????????????????? | | ?????????????????????????????????????????????????? | | ?????????????????????????????????????????????????? | | ?????????????????????????????????????????????????? | | ?????????????????????????????????????????????????? | | ?????????????????????????????????????????????????? | | ?????????????????????????????????????????????????? | | ?????????????????????????????????????????????????? | | ?????????????????###########?????????????????????? | | ?????????????????# #?????????????????????? | | ?????????????????# """"" @ #?????????????????????? | | ?????????????????# "" " #?????????????????????? | | ?????????????????# """ #?????????????????????? | | ?????????????????+ " / p #?????????????????????? | | ?????????????????# """ #?????????????????????? | | ???????????g?????# #?????????????????????? | | ?????????????????# !%=#?????????????????????? | | ?????????????????###;;#;#;%#####+###############?? | | ????????? ? p =! #?? | | ????????? ? h% #?? | | ????????? ? %]% e #?? | | ????????? ?? hE +?? | | ?##??#???+###### #######;;## p ########## #?? | | ?# ??|%=???# #?????? ]# #????????# #?? | | ?# " ["???? #?????? # #????????# #?? | | ?# "" "???? #?????? # #????????# #?? | | ?# "" "" #? #?????????+ #????????# #?? | | ?# "" "" #? #??? ????# #????????# % #?? | | ?# " " #? #??""?????# #????????# #?? | | ?# "" "" ## #?# " ????#### #????????# % %#?? | | ?# " " ## ##!""????????# #????????# = #?? | | ?? " "" ## #"! ??????????%#????????# ### | | ???? " " # "#???????????!#????????# | | ?????? [!% # #????????????!#????????#% % = | | ???????? !%[[?# #?????+#?????%+????????# % | +----------------------------------------------------+ Best States ------------- Heat Dissipation 111 Energy Generation 49 Energy Capacity 2100 Matter Stores 300 Matter Capacity 300 Sight Range 20 Robot Scan Range 18 Terrain Scan Range 20 Terrain Scan Density 10 Jamming Range 16 Additional Mass Support 20 Armor Coverage 1800 Resistance: KI 15 Resistance: TH 15 Resistance: EX 15 Resistance: EM 15 Resistance: I 15 Resistance: S 15 Resistance: P 15 Weapon Shielding 100 Weapon Cycling 20 Phase Shifting 8 Evasion (%) 48 Targeting Accuracy 8 Core Analysis 8 Recoil Reduction 2 Offensive Hacking 14 Item Schematics ----------------- Exp. Field Recycling Unit | -3/Quarantine | Archive Cld. Field Propulsion Drive | -3/Quarantine | Archive Com. Mass Driver | -3/Quarantine | Archive Imp. Matter Compressor | -3/Quarantine | Archive Exp. Signal Interpreter | -3/Quarantine | Archive Robot Schematics ------------------ None Fabricated ------------ Hvy. Phase Cannon | x2 | -6/Factory | Preloaded Alien Tech Used ----------------- Dimensional Node Initializer Integrated Dissipator Core Reset Matrix High-powered Transdimensional Reconstructor Transdimensional Reconstructor Core Cannon Achievements -------------- Exterminator Packrat Revolutionary Research Challenges ------------ None Game ------ Seed MicroLauncherDetonator Manual? 0 Play Time 08:01:05 Cumulative 121.6 hours Start 2022.04.18 @ 06:35:30 End 2022.04.20 @ 06:28:11 Sessions 40 Manual Loads 0 Difficulty Rogue Special Mode None Game No. 21 Rogue 14 Adventurer 1 Explorer 6 Win Type - Total 5 Types 3/1/1/0/0/0/0/0/0 Lore% 67 Gallery% 60 Achievement% 61 Wizard Run 0 Options --------- ASCII 0 Keyboard 0 Movement Mouse Keybinds 0 Fullscreen 1 Font 18/SmallcapsGlow Map View 76x50 Tactical HUD 1 Map Filters NONE Filters NONE Steam 1 RUN: e9910196-4668-4995-bf06-5d5f959372cd